[Event "45th FIDE Womens Olympiad 2024"]
[Site "Budapest"]
[Date "2024.09.11"]
[Round "1.32"]
[White "Zatonskih, Anna"]
[Black "Ruba Al-Qudah"]
[Result "1-0"]
[ECO "B38"]
[WhiteElo "2320"]
[BlackElo "1937"]
[Annotator "ChessBase"]
[PlyCount "91"]
[EventDate "2024.09.05"]
[EventType "team-tourn"]
[EventCountry "HUN"]
[SourceTitle "playchess.com"]
[Source "ChessBase"]
[SourceQuality "1"]
[WhiteTeam "United States of America"]
[BlackTeam "Jordan"]
[WhiteTeamCountry "USA"]
[BlackTeamCountry "JOR"]
[TimeControl "40/5400+30:1800+30"]

1. d4 {[%emt 0:00:03]} Nf6 {[%emt 0:00:02]} 2. c4 {[%emt 0:00:28]} g6 {[%emt 0:00:04]} 3. Nc3 {[%emt 0:00:30]} Bg7 {[%emt 0:00:03]} 4. e4 {[%emt 0:00:46]} d6 {[%emt 0:00:08]} 5. Nf3 {[%emt 0:00:11]} O-O {[%emt 0:00:08]} 6. Be2 {[%emt 0:00:48]} c5 {[%emt 0:00:45]} 7. O-O {[%emt 0:01:15]} cxd4 {[%emt 0:01:23]} 8. Nxd4 {[%emt 0:00:06]} Nc6 {[%emt 0:00:10]} 9. Be3 {[%emt 0:01:21]} Bd7 {[%emt 0:05:10]} 10. Qd2 {[%emt 0:04:12]} Rc8 {[%emt 0:03:26]} 11. f3 {[%emt 0:11:13]} Ne5 {[%emt 0:04:50]} 12. b3 {[%emt 0:02:14]} a6 {[%emt 0:11:56]} 13. Rac1 {[%emt 0:03:02]} Ne8 {[%emt 0:22:19]} 14. Nd5 {[%emt 0:09:52]} Nc6 {[%emt 0:11:59]} 15. Nc2 {[%emt 0:04:47]} Be6 {[%emt 0:02:05]} 16. Rfe1 {[%emt 0:16:35]} f5 {[%emt 0:08:43]} 17. exf5 {[%emt 0:12:06]} Bxf5 {[%emt 0:01:19]} 18. Bf1 {[%emt 0:00:17]} e6 {[%emt 0:04:43]} 19. Bg5 {[%emt 0:07:51]} Nf6 {[%emt 0:03:29]} 20. Nxf6+ {[%emt 0:00:50]} Bxf6 {[%emt 0:00:17]} 21. Bxf6 {[%emt 0:00:18]} Rxf6 {[%emt 0:01:29]} 22. Bd3 {[%emt 0:00:06]} Bxd3 {[%emt 0:04:47]} 23. Qxd3 {[%emt 0:00:02]} Ne5 {[%emt 0:01:51]} 24. Qd4 {[%emt 0:03:35]} Qf8 {[%emt 0:01:52]} 25. Rcd1 {[%emt 0:01:40]} Rxf3 {[%emt 0:03:45]} 26. Qxd6 {[%emt 0:01:49]} Qxd6 {[%emt 0:00:02]} 27. Rxd6 {[%emt 0:00:06]} Rc3 {[%emt 0:00:18]} 28. Nb4 {[%emt 0:06:56]} a5 {[%emt 0:04:11]} 29. Rxe6 {[%emt 0:00:41]} axb4 {[%emt 0:00:06]} 30. R6xe5 {[%emt 0:00:04]} Rc2 {[%emt 0:01:58]} 31. Re8+ {[%emt 0:00:50]} Rxe8 {[%emt 0:00:07]} 32. Rxe8+ {[%emt 0:00:06]} Kf7 {[%emt 0:00:25]} 33. Rb8 {[%emt 0:00:04]} Rxa2 {[%emt 0:00:09]} 34. Rxb7+ {[%emt 0:00:06]} Kf6 {[%emt 0:00:05]} 35. Rxb4 {[%emt 0:00:26]} Ke5 {[%emt 0:00:20]} 36. h3 {[%emt 0:01:13]} g5 {[%emt 0:00:19]} 37. Kh2 {[%emt 0:00:49]} h5 {[%emt 0:00:15]} 38. Rb8 {[%emt 0:00:14]} Rc2 {[%emt 0:00:27]} 39. Rb5+ {[%emt 0:04:29]} Kf4 {[%emt 0:00:26]} 40. c5 {[%emt 0:00:47]} g4 {[%emt 0:00:04]} 41. hxg4 {[%emt 0:30:03]} hxg4 {[%emt 0:30:33]} 42. Rb4+ {[%emt 0:00:10]} Kg5 {[%emt 0:01:49]} 43. Rc4 {[%emt 0:00:15]} Rd2 {[%emt 0:00:15]} 44. c6 {[%emt 0:00:45]} Rd8 {[%emt 0:00:54]} 45. c7 {[%emt 0:00:22]} Rc8 {[%emt 0:00:18]} 46. b4 {[%emt 0:00:07]} 1-0

[Event "45th FIDE Womens Olympiad 2024"]
[Site "Budapest"]
[Date "2024.09.11"]
[Round "1.33"]
[White "Wagner, Dinara"]
[Black "Henderson de La Fuente, Andrea"]
[Result "1-0"]
[ECO "A55"]
[WhiteElo "2452"]
[BlackElo "1986"]
[Annotator "TA"]
[PlyCount "77"]
[EventDate "2024.09.05"]
[EventType "team-tourn"]
[EventCountry "HUN"]
[SourceTitle "playchess.com"]
[Source "ChessBase"]
[SourceQuality "1"]
[WhiteTeam "Germany"]
[BlackTeam "Andorra"]
[WhiteTeamCountry "GER"]
[BlackTeamCountry "AND"]
[TimeControl "40/5400+30:1800+30"]

{[%evp 16,77,46,31,66,63,75,62,72,73,77,58,97,81,100,89,89,81,86,77,86,59,66,51,56,47,53,0,50,35,76,69,113,66,56,65,64,56,64,81,52,64,114,68,127,116,110,107,145,145,213,209,199,160,278,220,319,327,680,659,854,825,1366,1346]} 1. d4 Nf6 2. c4 d6 3. Nf3 Nbd7 4. Nc3 e5 5. g3 Be7 6. Bg2 c6 7. e4 O-O 8. O-O Re8 9. h3 exd4 10. Nxd4 Nc5 11. Re1 Ne6 {White is slightly better.} 12. Be3 Bf8 13. Qd2 {White has more active pieces.} g6 14. Rad1 Qc7 15. f4 Nc5 {[%cal Rc5e4]} 16. Bf2 a5 {[%cal Ba7a5,Ba5a4,Ba4a3][%mdl 32]} 17. g4 Nfd7 18. Nf3 a4 19. Qc2 Qa5 20. Nd4 Bg7 21. g5 (21. a3 $14) 21... Qb4 (21... h6 $11) 22. Bf1 a3 23. b3 Nf8 24. Bg2 (24. f5 $16) 24... Nfe6 $14 25. Nxe6 Nxe6 26. Ne2 h6 27. h4 hxg5 28. hxg5 Rd8 (28... Rb8 $14) 29. Bf3 (29. Rf1 $16) 29... Bd7 ({Black should try} 29... b5 $14) 30. Qd2 Qxd2 31. Rxd2 {[%cal Of2e3]} Bf8 32. Red1 Be8 (32... Re8 $16 {was called for.} 33. Rc2 Be7) 33. Be3 $18 Be7 34. Nc3 Rdc8 (34... f5 $16 35. gxf6 Bxf6) 35. Kf2 Kf8 (35... Bd8 {was necessary.} 36. Rxd6 Be7) 36. Kg3 Ra6 $2 {[#]} (36... f6 37. gxf6 Bxf6) 37. Rh2 {White is clearly winning.} f6 38. Bg4 Bf7 39. Rh8+ {Weighted Error Value: White=0.16 (very precise) /Black=0.39.  Mistake:       	White=3     	Black=7      Inaccurate:     	White=1     	Black=4      OK:         	White=9     	Black=8      Best:        	---       	Black=1} 1-0

[Event "45th FIDE Womens Olympiad 2024"]
[Site "Budapest"]
[Date "2024.09.11"]
[Round "1.34"]
[White "De la Riva Real, Ariadna"]
[Black "Heinemann, Josefine"]
[Result "0-1"]
[ECO "B51"]
[WhiteElo "1823"]
[BlackElo "2316"]
[Annotator "ChessBase"]
[PlyCount "82"]
[EventDate "2024.09.05"]
[EventType "team-tourn"]
[EventCountry "HUN"]
[SourceTitle "playchess.com"]
[Source "ChessBase"]
[SourceQuality "1"]
[WhiteTeam "Andorra"]
[BlackTeam "Germany"]
[WhiteTeamCountry "AND"]
[BlackTeamCountry "GER"]
[TimeControl "40/5400+30:1800+30"]

1. e4 c5 2. Nf3 d6 3. Bb5+ Nd7 4. O-O a6 5. Be2 Ngf6 6. d3 g6 7. c4 b6 8. Nc3 Bb7 9. Re1 Bg7 10. Bf1 O-O 11. d4 cxd4 12. Nxd4 Rc8 13. a4 Nc5 14. f3 Nfd7 15. Be3 Ne5 16. f4 Ned7 17. Bf2 Nf6 18. Qc2 Ng4 19. Rad1 Nxf2 20. Qxf2 Qe8 21. Qc2 Ne6 22. e5 Nxd4 23. Rxd4 Rd8 24. Rd2 dxe5 25. fxe5 Qc6 26. b4 e6 27. Kh1 Qc7 28. Rxd8 Rxd8 29. Qe2 h5 30. Nd1 Bh6 31. Qb2 Rd2 32. Qc3 Qc6 33. Qg3 Qxa4 34. Nc3 Qxb4 35. Rb1 Qa5 36. Ne2 Qc5 37. Nf4 Qxe5 38. Nxh5 Qxg3 39. Nxg3 Be3 40. Rb3 Bc5 41. Rd3 Bxg2+ 0-1

[Event "45th FIDE Womens Olympiad 2024"]
[Site "Budapest"]
[Date "2024.09.11"]
[Round "1.35"]
[White "Klek, Hanna Marie"]
[Black "Muratet Carmona, Julia"]
[Result "1-0"]
[ECO "C41"]
[WhiteElo "2296"]
[BlackElo "1816"]
[Annotator "ChessBase"]
[PlyCount "109"]
[EventDate "2024.09.05"]
[EventType "team-tourn"]
[EventCountry "HUN"]
[SourceTitle "playchess.com"]
[Source "ChessBase"]
[SourceQuality "1"]
[WhiteTeam "Germany"]
[BlackTeam "Andorra"]
[WhiteTeamCountry "GER"]
[BlackTeamCountry "AND"]
[TimeControl "40/5400+30:1800+30"]

1. e4 d6 2. d4 Nf6 3. Nc3 Nbd7 4. Nf3 e5 5. Bc4 Be7 6. O-O c6 7. a4 Qc7 8. Re1 h6 9. a5 g5 10. d5 Nf8 11. Nd2 Ng6 12. Nf1 Nf4 13. Ne3 h5 14. b3 h4 15. Bf1 g4 16. a6 Rg8 17. axb7 Bxb7 18. dxc6 Bxc6 19. Nf5 Bd7 20. Nb5 Bxb5 21. Bxb5+ Kf8 22. g3 hxg3 23. hxg3 Qc5 24. Bf1 Nh3+ 25. Bxh3 gxh3 26. Be3 Qc7 27. Ra6 Ng4 28. Qd5 Re8 29. Rxa7 Qxc2 30. Ra8 h2+ 31. Kg2 Nxe3+ 32. Nxe3 Qc3 33. Rh1 Rh8 34. Rxe8+ Kxe8 35. Qb5+ Kd8 36. Nd5 Qc8 37. Rxh2 Rxh2+ 38. Kxh2 Bg5 39. Qd3 Qe6 40. Kg2 Qd7 41. b4 Ke8 42. b5 Bd8 43. Qc4 Qb7 44. Qc6+ Qxc6 45. bxc6 Ba5 46. Kf3 Kd8 47. Ke2 Kc8 48. g4 Bd8 49. Kd3 Bh4 50. f3 Bd8 51. Kc4 Kb8 52. Ne3 Be7 53. Kd5 Kc7 54. Nf5 Bf8 55. g5 1-0

[Event "45th FIDE Womens Olympiad 2024"]
[Site "Budapest"]
[Date "2024.09.11"]
[Round "1.36"]
[White "Muratet Carmona, Alexandra"]
[Black "Schulze, Lara"]
[Result "0-1"]
[ECO "B67"]
[WhiteElo "1796"]
[BlackElo "2283"]
[Annotator "ChessBase"]
[PlyCount "54"]
[EventDate "2024.09.05"]
[EventType "team-tourn"]
[EventCountry "HUN"]
[SourceTitle "playchess.com"]
[Source "ChessBase"]
[SourceQuality "1"]
[WhiteTeam "Andorra"]
[BlackTeam "Germany"]
[WhiteTeamCountry "AND"]
[BlackTeamCountry "GER"]
[TimeControl "40/5400+30:1800+30"]

1. e4 c5 2. Nf3 d6 3. d4 cxd4 4. Nxd4 Nf6 5. Nc3 Nc6 6. Bg5 e6 7. Qd2 a6 8. O-O-O Bd7 9. Kb1 Nxd4 10. Qxd4 Be7 11. f4 Bc6 12. Rg1 Qa5 13. g4 h6 14. Bh4 g5 15. fxg5 hxg5 16. Be1 Qe5 17. Qxe5 dxe5 18. Bd3 Bc5 19. Rg2 Be3 20. Bd2 Bf4 21. Rf1 Rd8 22. Bc1 Rh4 23. Rgf2 Nxg4 24. Re2 Ke7 25. Nd1 Nxh2 26. Rff2 Ng4 27. Rg2 Rh1 0-1

[Event "45th FIDE Womens Olympiad 2024"]
[Site "Budapest"]
[Date "2024.09.11"]
[Round "1.37"]
[White "Marape, Naledi"]
[Black "Garcia Martin, Marta"]
[Result "0-1"]
[ECO "B32"]
[WhiteElo "1926"]
[BlackElo "2318"]
[Annotator "ChessBase"]
[PlyCount "46"]
[EventDate "2024.09.05"]
[EventType "team-tourn"]
[EventCountry "HUN"]
[SourceTitle "playchess.com"]
[Source "ChessBase"]
[SourceQuality "1"]
[WhiteTeam "Botswana"]
[BlackTeam "Spain"]
[WhiteTeamCountry "BOT"]
[BlackTeamCountry "ESP"]
[TimeControl "40/5400+30:1800+30"]

1. e4 c5 2. Nf3 Nc6 3. d4 cxd4 4. Nxd4 Qb6 5. Nb3 e6 6. Be3 Qc7 7. Be2 Nf6 8. f3 d5 9. N1d2 Bd6 10. g3 h5 11. f4 e5 12. exd5 exf4 13. Bxf4 Bxf4 14. gxf4 Nxd5 15. Nc4 Nxf4 16. Qd6 Qxd6 17. Nxd6+ Ke7 18. Nxc8+ Raxc8 19. c3 Rh6 20. Kf2 Rf6 21. Ke3 Ng2+ 22. Kd3 Rd8+ 23. Ke4 Rf4# 0-1

[Event "45th FIDE Womens Olympiad 2024"]
[Site "Budapest"]
[Date "2024.09.11"]
[Round "1.38"]
[White "Vega Gutierrez, Sabrina"]
[Black "Gabatshwarwe Refilwe"]
[Result "1-0"]
[ECO "C47"]
[WhiteElo "2374"]
[BlackElo "1787"]
[Annotator "ChessBase"]
[PlyCount "75"]
[EventDate "2024.09.05"]
[EventType "team-tourn"]
[EventCountry "HUN"]
[SourceTitle "playchess.com"]
[Source "ChessBase"]
[SourceQuality "1"]
[WhiteTeam "Spain"]
[BlackTeam "Botswana"]
[WhiteTeamCountry "ESP"]
[BlackTeamCountry "BOT"]
[TimeControl "40/5400+30:1800+30"]

1. e4 e5 2. Nf3 Nc6 3. Nc3 Nf6 4. g3 Bc5 5. Bg2 d6 6. d3 h6 7. O-O Be6 8. h3 Qd7 9. Kh2 g5 10. Nd2 O-O-O 11. Nd5 Bxd5 12. exd5 Ne7 13. c4 Rdg8 14. Rb1 h5 15. b4 Bd4 16. Ne4 Nxe4 17. dxe4 f5 18. exf5 Nxf5 19. Be4 Ne7 20. Be3 Bxe3 21. fxe3 Rf8 22. Rb2 Rxf1 23. Qxf1 Kb8 24. c5 c6 25. dxc6 Nxc6 26. b5 Na5 27. Qd3 Rd8 28. c6 Qc7 29. Bd5 b6 30. Rf2 Rc8 31. Rf7 Qd8 32. Qf5 a6 33. Be6 Nxc6 34. bxc6 h4 35. Bxc8 hxg3+ 36. Kxg3 Qh8 37. Qd7 Qh4+ 38. Kh2 1-0

[Event "45th FIDE Womens Olympiad 2024"]
[Site "Budapest"]
[Date "2024.09.11"]
[Round "1.39"]
[White "Banda Natalie Katlo"]
[Black "Matnadze Bujiashvili, Ann"]
[Result "0-1"]
[ECO "D94"]
[WhiteElo "1893"]
[BlackElo "2338"]
[Annotator "ChessBase"]
[PlyCount "188"]
[EventDate "2024.09.05"]
[EventType "team-tourn"]
[EventCountry "HUN"]
[SourceTitle "playchess.com"]
[Source "ChessBase"]
[SourceQuality "1"]
[WhiteTeam "Botswana"]
[BlackTeam "Spain"]
[WhiteTeamCountry "BOT"]
[BlackTeamCountry "ESP"]
[TimeControl "40/5400+30:1800+30"]

1. d4 Nf6 2. Nf3 c6 3. c4 g6 4. Nc3 d5 5. e3 Bg7 6. Bd3 O-O 7. b3 c5 8. Bb2 cxd4 9. exd4 Nc6 10. h3 dxc4 11. Bxc4 Nb4 12. O-O a6 13. Qd2 b5 14. Be2 Nbd5 15. Nxd5 Nxd5 16. Rac1 Bb7 17. Ne5 Qd6 18. Bf3 Rfd8 19. Rfd1 a5 20. Bc3 f6 21. Nd3 Nxc3 22. Bxb7 Nxd1 23. Bxa8 Rxa8 24. Rxd1 Qxd4 25. Qe2 Kf7 26. Nb2 Qe5 27. Qxe5 fxe5 28. Rd5 e4 29. Nd1 Rb8 30. Ne3 Ke6 31. Kf1 a4 32. Ke2 Bc3 33. Rc5 Bd4 34. Rc6+ Kd7 35. Ra6 axb3 36. axb3 Rc8 37. Ra5 Bxe3 38. Kxe3 Rc3+ 39. Kxe4 Rxb3 40. Ra7+ Ke6 41. Ra6+ Kf7 42. Rb6 Rb2 43. Ke3 b4 44. g3 Ke8 45. Kf3 Kd7 46. Ke3 Rb1 47. Kd2 Rb2+ 48. Kc1 Rxf2 49. Rxb4 Ke6 50. Re4+ Kd6 51. Rh4 h5 52. Rd4+ Ke5 53. Rd3 Ke4 54. Rd7 e5 55. Rd6 Kf5 56. g4+ hxg4 57. hxg4+ Kg5 58. Re6 Rf6 59. Rxe5+ Kxg4 60. Kd2 g5 61. Ke3 Kh4 62. Re8 g4 63. Rh8+ Kg3 64. Rg8 Re6+ 65. Kd3 Kf3 66. Rf8+ Kg2 67. Rg8 g3 68. Rg7 Kf2 69. Rf7+ Kg1 70. Rg7 g2 71. Kd2 Re5 72. Rg8 Kf2 73. Rf8+ Kg3 74. Ra8 g1=Q 75. Rg8+ Kf2 76. Rf8+ Kg2 77. Rg8+ Kf1 78. Rxg1+ Kxg1 79. Kd3 Kf2 80. Kd4 Re3 81. Kd5 Kf3 82. Kd4 Kf4 83. Kd5 Rd3+ 84. Kc4 Ke4 85. Kc5 Rc3+ 86. Kb4 Kd4 87. Kb5 Rb3+ 88. Kc6 Rb4 89. Kd6 Rb6+ 90. Kd7 Kd5 91. Kc7 Rb5 92. Kd7 Rb7+ 93. Kc8 Rh7 94. Kd8 Ke6 0-1

[Event "45th FIDE Womens Olympiad 2024"]
[Site "Budapest"]
[Date "2024.09.11"]
[Round "1.40"]
[White "Calzetta Ruiz, Monica"]
[Black "Mosweu, Atlang Amolemo"]
[Result "1-0"]
[ECO "B13"]
[WhiteElo "2199"]
[BlackElo "1797"]
[Annotator "ChessBase"]
[PlyCount "69"]
[EventDate "2024.09.05"]
[EventType "team-tourn"]
[EventCountry "HUN"]
[SourceTitle "playchess.com"]
[Source "ChessBase"]
[SourceQuality "1"]
[WhiteTeam "Spain"]
[BlackTeam "Botswana"]
[WhiteTeamCountry "ESP"]
[BlackTeamCountry "BOT"]
[TimeControl "40/5400+30:1800+30"]

1. e4 c6 2. d4 d5 3. exd5 cxd5 4. Bd3 Nf6 5. c3 Nc6 6. Bf4 e6 7. Nf3 Bd6 8. Bxd6 Qxd6 9. O-O O-O 10. Re1 b6 11. Nbd2 Bb7 12. Ne5 a5 13. Rc1 Ne7 14. Qf3 Ba6 15. Bb1 Rfc8 16. g4 Rf8 17. g5 Nd7 18. Qh3 g6 19. Re3 Nf5 20. Bxf5 exf5 21. Qh6 Rfe8 22. Nxd7 Qxd7 23. Rh3 f6 24. gxf6 Re6 25. Nf3 Rxf6 26. Re1 Rf7 27. Ne5 Qe7 28. Ree3 Rg7 29. Kh1 Qf6 30. Nf3 Bc8 31. Re8+ Kf7 32. Rh8 Bb7 33. Ne5+ Ke6 34. Rxh7 Rag8 35. Re3 1-0

[Event "45th FIDE Womens Olympiad 2024"]
[Site "Budapest"]
[Date "2024.09.11"]
[Round "1.41"]
[White "Kamalidenova, Meruert"]
[Black "Quevedo, Andreina"]
[Result "1-0"]
[ECO "C41"]
[WhiteElo "2352"]
[BlackElo "1851"]
[Annotator "ChessBase"]
[PlyCount "47"]
[EventDate "2024.09.05"]
[EventType "team-tourn"]
[EventCountry "HUN"]
[SourceTitle "playchess.com"]
[Source "ChessBase"]
[SourceQuality "1"]
[WhiteTeam "Kazakhstan"]
[BlackTeam "Uruguay"]
[WhiteTeamCountry "KAZ"]
[BlackTeamCountry "URU"]
[TimeControl "40/5400+30:1800+30"]

1. e4 d6 2. d4 Nf6 3. Nc3 e5 4. Nf3 Nbd7 5. Bc4 Be7 6. O-O O-O 7. a4 c6 8. Re1 h6 9. h3 Re8 10. Ba2 exd4 11. Nxd4 Bf8 12. Bf4 Qc7 13. Qf3 Ne5 14. Qe2 Rb8 15. Qd2 Kh7 16. Bh2 a6 17. f4 Ng6 18. Kh1 b5 19. e5 dxe5 20. fxe5 Nd5 21. Bxd5 cxd5 22. e6 Bd6 23. Nxd5 Qc5 24. Nb3 1-0

[Event "45th FIDE Womens Olympiad 2024"]
[Site "Budapest"]
[Date "2024.09.11"]
[Round "1.42"]
[White "Fabra, Nahiara"]
[Black "Balabayeva, Xeniya"]
[Result "0-1"]
[ECO "B15"]
[WhiteElo "1932"]
[BlackElo "2335"]
[Annotator "ChessBase"]
[PlyCount "78"]
[EventDate "2024.09.05"]
[EventType "team-tourn"]
[EventCountry "HUN"]
[SourceTitle "playchess.com"]
[Source "ChessBase"]
[SourceQuality "1"]
[WhiteTeam "Uruguay"]
[BlackTeam "Kazakhstan"]
[WhiteTeamCountry "URU"]
[BlackTeamCountry "KAZ"]
[TimeControl "40/5400+30:1800+30"]

1. e4 c6 2. d4 d5 3. Nc3 dxe4 4. Nxe4 Nf6 5. Nxf6+ exf6 6. c3 Bd6 7. Bd3 O-O 8. Ne2 Re8 9. Qc2 h5 10. Be3 Nd7 11. O-O h4 12. h3 Nf8 13. Rad1 Bd7 14. c4 Rc8 15. Rfe1 Bb8 16. Qb3 b6 17. c5 Be6 18. Qc2 b5 19. Bf4 Qa5 20. Bxb8 Rxb8 21. Be4 Rbc8 22. a3 g6 23. Nf4 f5 24. Bxc6 Bb3 25. Qc1 Rxe1+ 26. Rxe1 Rxc6 27. Re8 Qc7 28. Qe3 Qd7 29. Re7 Re6 30. Nxe6 Qxe7 31. Qxb3 Nxe6 32. Qe3 Qd7 33. b4 Qxd4 34. Qe2 a6 35. Qf3 Qa1+ 36. Kh2 Qe5+ 37. Kg1 Nd4 38. Qa8+ Kg7 39. Qxa6 Qe1+ 0-1

[Event "45th FIDE Womens Olympiad 2024"]
[Site "Budapest"]
[Date "2024.09.11"]
[Round "1.43"]
[White "Nurman, Alua"]
[Black "Silva Rosas, Natalia"]
[Result "1-0"]
[ECO "B01"]
[WhiteElo "2324"]
[BlackElo "1868"]
[Annotator "ChessBase"]
[PlyCount "85"]
[EventDate "2024.09.05"]
[EventType "team-tourn"]
[EventCountry "HUN"]
[SourceTitle "playchess.com"]
[Source "ChessBase"]
[SourceQuality "1"]
[WhiteTeam "Kazakhstan"]
[BlackTeam "Uruguay"]
[WhiteTeamCountry "KAZ"]
[BlackTeamCountry "URU"]
[TimeControl "40/5400+30:1800+30"]

1. e4 d5 2. exd5 Qd7 3. d6 Qxd6 4. Nc3 c6 5. d4 Bg4 6. Nf3 Nf6 7. Be2 Bh5 8. h3 e6 9. O-O Nbd7 10. Bg5 Qc7 11. Bh4 Bd6 12. Bg3 Bg6 13. Ne5 Rd8 14. Re1 Bf5 15. Bd3 Bxd3 16. Qxd3 O-O 17. Rad1 Nb6 18. Qf3 Nbd5 19. Na4 Ne7 20. Bh4 Nd7 21. Nc3 Nxe5 22. dxe5 Bb4 23. Rxd8 Rxd8 24. Qg4 Bxc3 25. Bf6 g6 26. bxc3 Rd7 27. Qg5 Qd8 28. c4 Qf8 29. g4 h6 30. Qe3 b5 31. Qc5 Qe8 32. Rb1 Kh7 33. cxb5 cxb5 34. Qxb5 Ng8 35. g5 Nxf6 36. gxf6 Qd8 37. c4 g5 38. c5 Rd5 39. Qc4 Rxe5 40. c6 Kg6 41. c7 Qc8 42. Qd3+ Kh5 43. Qd8 1-0

[Event "45th FIDE Womens Olympiad 2024"]
[Site "Budapest"]
[Date "2024.09.11"]
[Round "1.44"]
[White "Cardozo, Camila"]
[Black "Kairbekova, Amina"]
[Result "0-1"]
[ECO "E92"]
[WhiteElo "1673"]
[BlackElo "2243"]
[Annotator "ChessBase"]
[PlyCount "74"]
[EventDate "2024.09.05"]
[EventType "team-tourn"]
[EventCountry "HUN"]
[SourceTitle "playchess.com"]
[Source "ChessBase"]
[SourceQuality "1"]
[WhiteTeam "Uruguay"]
[BlackTeam "Kazakhstan"]
[WhiteTeamCountry "URU"]
[BlackTeamCountry "KAZ"]
[TimeControl "40/5400+30:1800+30"]

1. d4 Nf6 2. Nf3 g6 3. c4 Bg7 4. Nc3 d6 5. e4 O-O 6. Be2 e5 7. d5 a5 8. Bg5 h6 9. Bh4 Na6 10. O-O Nc5 11. Nd2 Bd7 12. Qc2 Qe8 13. b3 Nh7 14. f3 Bf6 15. Bf2 b6 16. a3 Bg5 17. Rfb1 a4 18. Bxc5 axb3 19. Qxb3 Bxd2 20. Bf2 Bxc3 21. Qxc3 f5 22. exf5 gxf5 23. Bd1 Nf6 24. Bc2 Rf7 25. Qd2 Rg7 26. a4 Qg6 27. Be3 Qh5 28. Bxh6 Rg6 29. Be3 Kf7 30. Bf2 Rag8 31. Bg3 Rh6 32. Kf1 f4 33. Bf2 Qxh2 34. Bg1 Qh1 35. Be4 Rh2 36. Rb2 Rhxg2 37. Qxg2 Bh3 0-1

[Event "45th FIDE Womens Olympiad 2024"]
[Site "Budapest"]
[Date "2024.09.11"]
[Round "1.45"]
[White "Johnson, Gabriella"]
[Black "Mkrtchian, Lilit"]
[Result "0-1"]
[ECO "B13"]
[WhiteElo "1896"]
[BlackElo "2366"]
[Annotator "ChessBase"]
[PlyCount "66"]
[EventDate "2024.09.05"]
[EventType "team-tourn"]
[EventCountry "HUN"]
[SourceTitle "playchess.com"]
[Source "ChessBase"]
[SourceQuality "1"]
[WhiteTeam "Trinidad & Tobago"]
[BlackTeam "Armenia"]
[BlackTeamCountry "ARM"]
[TimeControl "40/5400+30:1800+30"]

1. e4 c6 2. d4 d5 3. exd5 cxd5 4. Bd3 Nc6 5. c3 e6 6. Bf4 Bd6 7. Bxd6 Qxd6 8. Nf3 Nge7 9. O-O O-O 10. Re1 Bd7 11. Nbd2 f6 12. c4 g5 13. c5 Qc7 14. h3 Kh8 15. a3 a5 16. Nf1 Rg8 17. g3 e5 18. dxe5 fxe5 19. Bb5 e4 20. Nd4 Bxh3 21. Ne3 Qe5 22. Bxc6 Nxc6 23. Qh5 Nxd4 24. Qxh3 Nf3+ 25. Kg2 Nxe1+ 26. Rxe1 Raf8 27. Rh1 Rg7 28. Rb1 d4 29. Ng4 Qxc5 30. b4 Qc2 31. Rf1 e3 32. Qh6 e2 33. Re1 Qe4+ 0-1

[Event "45th FIDE Womens Olympiad 2024"]
[Site "Budapest"]
[Date "2024.09.11"]
[Round "1.46"]
[White "Mkrtchyan, Mariam"]
[Black "Hermoso Rodriguez, Ysvett"]
[Result "1-0"]
[ECO "E06"]
[WhiteElo "2328"]
[BlackElo "1943"]
[Annotator "TA"]
[PlyCount "143"]
[EventDate "2024.09.05"]
[EventType "team-tourn"]
[EventCountry "HUN"]
[SourceTitle "playchess.com"]
[Source "ChessBase"]
[SourceQuality "1"]
[WhiteTeam "Armenia"]
[BlackTeam "Trinidad & Tobago"]
[WhiteTeamCountry "ARM"]
[TimeControl "40/5400+30:1800+30"]

{[%evp 14,143,16,19,14,12,16,16,32,24,33,27,101,18,14,-2,14,12,20,18,66,65,77,41,102,83,100,97,97,87,86,68,68,68,75,64,61,62,67,70,68,70,62,53,52,52,66,26,29,27,33,35,47,47,57,34,33,27,66,63,77,62,82,68,72,47,45,45,45,32,53,26,47,22,22,22,72,72,72,0,81,72,67,71,64,73,113,126,121,121,132,118,135,127,195,76,301,279,287,280,272,0,270,207,384,387,430,363,485,467,429,428,566,316,823,809,784,743,4134,4134,2799,2542,2637,2651,29980,29981,29986,29982,29988,29989,29989,29990]} 1. d4 d5 2. Nf3 Nf6 3. c4 c6 4. Qc2 e6 5. g3 Be7 6. Bg2 O-O 7. O-O dxc4 8. Qxc4 b5 9. Qd3 Bb7 10. Ne5 Qb6 {The position is equal.} 11. Nc3 Rd8 12. Be3 Nbd7 {[#]} (12... Nd5 $11) 13. Nxd7 (13. d5 $1 $16 c5 (13... Nc5 $2 14. dxc6 Ba6 15. Qc2 $18) 14. Nc6) 13... Rxd7 $11 14. Rac1 Rc8 15. Rfd1 a6 16. Ne4 Rcd8 (16... Nxe4 $11 {should be considered.} 17. Qxe4 (17. Bxe4 c5 $11) 17... a5) 17. Qc2 $14 {[%cal Od4d5] White is more active.} Nd5 18. Bd2 h6 (18... Nf6 $14) 19. e3 f5 20. Nc5 Bxc5 21. dxc5 Qc7 22. e4 Nf6 23. exf5 exf5 24. Bf4 Rxd1+ 25. Rxd1 Rxd1+ 26. Qxd1 Qd7 {Black is weak on the dark squares} 27. Qxd7 Nxd7 {[%mdl 4096] Endgame. KBB-KBN} 28. Bh3 Nxc5 29. Bxf5 Kf7 30. Be5 g6 31. Bc2 Bc8 32. Bd4 Nb7 33. Be4 Bd7 34. h4 Nd6 35. Bg2 a5 36. b3 Nb7 37. Kf1 Ke6 38. Ke2 Kd6 39. Ke3 Bf5 40. Bg7 h5 41. a3 Nd8 42. Bf3 Bc2 43. Bf8+ Kd7 44. b4 a4 (44... Ne6 $11 45. Bh6 a4) 45. Kd2 Bf5 46. Bc5 ({Better is} 46. Kc3 $16) 46... Ne6 (46... Nf7 $11) 47. Be3 Kd6 48. Kc3 Bb1 49. Ba7 Bf5 50. Bb8+ Kd7 51. Be2 Be4 52. Be5 Bf5 53. f3 {Black must now prevent g4.} Bb1 {[#]} (53... g5 $16 54. hxg5 Nxg5) 54. g4 (54. Kb2 $1 $18 {[%cal Rb2b1]} Bf5 55. g4 hxg4 56. fxg4) 54... hxg4 $2 (54... g5 $16) 55. fxg4 $18 Ke8 56. Bf3 Kd7 57. Be2 $2 {This pair of bishops is nice.} ({White should try} 57. h5 $18) 57... Be4 $2 {[%mdl 8192]} (57... Ke8 $1 $11) 58. Kd2 Nf8 $2 (58... Ke7 59. Ke3 Bc2) 59. Ke3 Bb1 60. h5 gxh5 61. gxh5 {[%cal Bg4h5,Bh5h6][%mdl 32]} Ke6 62. Bg7 Nh7 63. Kd4 Ba2 $2 (63... Ng5 64. Bg4+ Ke7) 64. Kc5 Bd5 65. h6 Kf7 {[#]} 66. Bxb5 $1 {[%mdl 512]} Ng5 (66... Be6 67. Bxa4) 67. Bxc6 Bb3 68. b5 {[%cal Bb4b5,Bb5b6][%mdl 32] White wants to mate with b6.} Ne6+ 69. Kd6 {White mates.} Nd8 70. b6 Bd1 71. Bd5+ Kg6 72. Ke7 {Weighted Error Value: White=0.19 (very precise) /Black=0.39.  Loses game:     	---       	Black=2      Missed win:     	White=1     	---        Mistake:       	White=3     	Black=8      Inaccurate:     	White=4     	Black=4      OK:         	White=22    	Black=13     Best:        	White=2     	Black=3} 1-0